bitfinex-derivatives/quotes_SOLF0:USTF0_20250705
["timestamp","ask_amount","ask_price","bid_price","bid_amount"]
[1751723652480,6.7636,147.82,147.8,52.6041]
[1751723652681,6.7636,147.82,147.8,48.81997785]
[1751723653974,6.7636,147.82,147.8,48.8204192]
[1751723654577,6.7638,147.81,147.8,45.84]
[1751723655177,6.29802193,147.86,147.8,45.84]
[1751723655482,19.95467001,147.85,147.8,48.8204192]
[1751723655683,12.48286473,147.84,147.8,48.8204192]
[1751723655976,12.49032113,147.83,147.8,55.5847192]
[1751723656182,6.7633,147.83,147.8,55.5847192]
[1751723656780,6.7635,147.82,147.8,48.8204192]
[1751723656984,2.9804192,147.84,147.8,48.8204192]
[1751723657181,5.72550766,147.83,147.8,48.8204192]
[1751723657383,6.7637,147.82,147.8,48.8204192]
[1751723657678,2.9804192,147.83,147.8,45.84]
[1751723657878,2.9804192,147.81,147.76,45.84]
[1751723658079,8.70331363,147.8,147.76,48.8204192]
[1751723658284,2.9804192,147.8,147.76,48.8204192]
[1751723658490,6.7651,147.79,147.76,55.5865192]
[1751723658778,2.9804192,147.83,147.78,2.9804192]
[1751723658982,6.7642,147.81,147.79,2.9804192]
[1751723660276,2.9804192,147.83,147.76,45.84]
[1751723660277,6.7643,147.8,147.76,45.84]
[1751723660483,6.7643,147.8,147.78,2.9804192]
[1751723660685,6.7643,147.8,147.79,2.9804192]
[1751723661079,11.65228839,147.8,147.79,2.9804192]
[1751723661276,6.7643,147.8,147.79,2.9804192]
[1751723663286,6.7643,147.8,147.78,2.9804192]
[1751723663678,6.7647,147.79,147.78,2.9804192]
[1751723663878,6.7647,147.79,147.77,2.9804192]
[1751723665077,2.9804192,147.8,147.76,48.8204192]
[1751723666585,6.7655,147.78,147.76,48.8204192]
[1751723667889,6.7649,147.79,147.76,55.5865192]
[1751723668285,2.9804192,147.81,147.76,48.8204192]
[1751723668588,6.7648,147.79,147.76,48.8204192]
[1751723670690,6.7648,147.79,147.77,2.9804192]
[1751723671083,6.7648,147.79,147.76,45.84]
[1751723671287,6.7652,147.78,147.77,2.9804192]
[1751723672392,6.7649,147.79,147.77,2.9804192]
[1751723675593,6.7649,147.79,147.76,52.606]
[1751723675789,6.7649,147.79,147.77,2.9804192]
[1751723676490,6.7645,147.8,147.77,9.7460192]
[1751723676692,6.7645,147.8,147.78,2.9804192]
[1751723677586,6.7645,147.8,147.77,9.7458192]
[1751723679994,2.9804192,147.82,147.77,9.7458192]
[1751723680194,4.8323146,147.81,147.77,9.7458192]
[1751723680390,2.9804192,147.82,147.77,9.7458192]
[1751723680584,4.83240965,147.81,147.77,9.7458192]
[1751723680785,2.9804192,147.82,147.77,9.7458192]
[1751723680986,4.83240965,147.81,147.77,9.7458192]
[1751723681189,2.9804192,147.82,147.77,9.7458192]
[1751723681394,4.83257346,147.81,147.77,9.7458192]
[1751723681597,6.7647,147.79,147.77,9.7458192]
[1751723683700,2.9804192,147.81,147.76,48.8204192]
[1751723683997,2.9804192,147.8,147.76,48.8204192]
[1751723684592,6.7654,147.78,147.76,48.8204192]
[1751723685193,6.7654,147.78,147.76,55.5864192]
[1751723685803,6.7654,147.78,147.76,52.606]
[1751723686102,6.7654,147.78,147.76,48.8204192]
[1751723689203,6.7654,147.78,147.76,45.84]
[1751723689405,6.7654,147.78,147.76,48.8204192]
[1751723690695,6.7653,147.78,147.76,45.84]
[1751723690899,6.7653,147.78,147.76,48.8204192]
[1751723692602,6.7656,147.77,147.76,45.84]
[1751723694409,6.7654,147.78,147.76,45.84]
[1751723699414,6.7654,147.78,147.76,48.8204192]
[1751723700409,6.765,147.79,147.76,55.5864192]
[1751723700611,4.87049879,147.78,147.77,2.9804192]
[1751723700909,6.288135,147.83,147.78,6.765]
[1751723700910,2.9804192,147.83,147.78,6.765]
[1751723701108,18.3664473,147.82,147.79,2.9804192]
[1751723701417,18.3664473,147.81,147.79,2.9804192]
[1751723701714,7.56203737,147.8,147.79,2.9804192]
[1751723702118,10.69127566,147.8,147.78,9.7454192]
[1751723702316,2.9804192,147.82,147.78,9.7454192]
[1751723702621,6.7642,147.8,147.78,9.7454192]
[1751723704607,6.7642,147.8,147.78,2.9804192]
[1751723705218,6.7648,147.79,147.77,9.7458192]
[1751723705515,6.7648,147.79,147.77,2.9804192]
[1751723706221,6.7648,147.79,147.76,55.5863192]
[1751723706612,6.7652,147.78,147.76,45.84]
[1751723708624,9.2685542,147.81,147.77,2.9804192]
[1751723708923,18.42817351,147.8,147.77,2.9804192]
[1751723709124,13.41209608,147.79,147.78,2.9804192]
[1751723709518,20.17689608,147.79,147.78,2.9804192]
[1751723709717,11.64985092,147.79,147.78,2.9804192]
[1751723710120,4.88505092,147.79,147.78,9.7456192]
[1751723711215,6.7645,147.8,147.78,9.7456192]
[1751723711419,6.7634,147.82,147.78,2.9804192]
[1751723711718,7.57964595,147.81,147.8,2.9804192]
[1751723711919,4.88479213,147.81,147.8,2.9804192]
[1751723713626,4.88479213,147.81,147.8,9.7446192]
[1751723715225,6.763,147.83,147.81,6.7638]
[1751723715432,13.43349803,147.82,147.81,6.7638]
[1751723715625,13.43349803,147.82,147.81,9.7442192]
[1751723716228,10.73974958,147.82,147.81,9.7442192]
[1751723716526,8.584035,147.88,147.81,2.9804192]
[1751723716827,8.584035,147.88,147.86,2.9804192]
[1751723716828,18.45528119,147.87,147.86,2.9804192]
[1751723717225,13.43353287,147.87,147.86,2.9804192]
[1751723717727,6.7599,147.9,147.86,2.9804192]
[1751723717927,13.42303775,147.89,147.88,2.9804192]
[1751723719628,7.57106539,147.89,147.88,2.9804192]
[1751723719828,7.57106539,147.89,147.87,6.7608]
[1751723720028,6.7599,147.9,147.87,6.7608]
[1751723720231,10.80904559,147.89,147.87,6.7608]
[1751723720428,6.7599,147.9,147.87,6.7608]
[1751723720628,4.92710681,147.89,147.87,6.7608]
[1751723720929,6.7599,147.9,147.87,6.7608]
[1751723722928,6.7599,147.9,147.86,11.41348434]
[1751723723130,6.7602,147.89,147.86,11.41348434]
[1751723724634,6.7598,147.9,147.87,6.761]
[1751723734538,6.7598,147.9,147.88,6.7606]
[1751723734737,6.7598,147.9,147.86,4.65218434]
[1751723734943,6.7602,147.89,147.86,50.47218434]
[1751723735446,6.7602,147.89,147.86,57.23348434]
[1751723735846,6.7609,147.88,147.86,50.47218434]
[1751723736039,6.7609,147.88,147.86,45.82]
[1751723737247,6.761,147.87,147.84,11.41438434]
[1751723739547,6.761,147.87,147.85,6.7619]
[1751723741749,6.761,147.87,147.86,2.97821833]
[1751723742551,2.97821833,147.88,147.83,2.97821833]
[1751723742750,10.68351767,147.92,147.82,48.79821833]
[1751723742751,2.97821833,147.87,147.82,48.79821833]
[1751723742952,2.97821833,147.86,147.82,48.79821833]
[1751723743746,6.7628,147.84,147.82,48.79821833]
[1751723745748,6.7628,147.84,147.82,45.82]
[1751723753554,6.7629,147.83,147.82,45.82]
[1751723753954,6.7629,147.83,147.8,11.41989962]
[1751723756855,6.7629,147.83,147.81,6.7637]
[1751723759061,6.7626,147.84,147.81,6.7637]
[1751723765066,6.7626,147.84,147.82,6.7632]
[1751723765767,6.7626,147.84,147.82,9.74278595]
[1751723769068,6.7626,147.84,147.82,2.97958595]
[1751723773472,6.7629,147.83,147.82,2.97958595]
[1751723776971,6.7636,147.82,147.78,239.68]
[1751723777177,6.7636,147.82,147.81,2.97958595]
[1751723777376,6.7636,147.82,147.8,2.97958595]
[1751723780980,6.7636,147.82,147.81,2.97958595]
[1751723782181,11.69574798,147.82,147.81,2.97958595]
[1751723783183,4.93214798,147.82,147.81,2.97958595]
[1751723784683,4.93214798,147.82,147.81,9.74338595]
[1751723786282,13.48417319,147.82,147.81,9.74338595]
[1751723793585,13.50575672,147.82,147.81,9.74338595]
[1751723801190,4.95373151,147.82,147.81,9.74338595]
[1751723806194,13.01901767,147.86,147.83,6.7627]
[1751723806391,18.47838274,147.85,147.84,2.97958595]
[1751723809495,13.55142881,147.85,147.84,2.97958595]
[1751723810098,20.31342881,147.85,147.84,2.97958595]
[1751723816607,13.55142881,147.85,147.84,2.97958595]
[1751723816912,13.54203994,147.85,147.84,2.97958595]
[1751723817207,13.53838872,147.85,147.84,2.97958595]
[1751723818008,20.30038872,147.85,147.84,2.97958595]
[1751723822009,12.6364216,147.85,147.84,2.97958595]
[1751723822210,20.31769111,147.85,147.84,2.97958595]
[1751723824213,13.55569111,147.85,147.84,2.97958595]
[1751723825112,5.8744216,147.85,147.84,2.97958595]
[1751723825315,13.54362896,147.85,147.84,2.97958595]
[1751723825617,13.54364904,147.85,147.84,2.97958595]
[1751723827416,10.84224634,147.85,147.84,2.97958595]
[1751723827605,13.54353494,147.85,147.84,2.97958595]
[1751723831613,13.54353494,147.85,147.84,9.74198595]
[1751723831814,6.31255192,147.86,147.84,2.97958595]
[1751723832009,6.31255192,147.86,147.85,2.97958595]
[1751723832412,6.31255192,147.88,147.86,6.7615]
[1751723832709,6.31255192,147.88,147.87,2.97958595]
[1751723837320,15.08322305,147.89,147.87,2.97958595]
[1751723837511,15.08322305,147.89,147.88,2.97958595]
[1751723843826,28.43192606,147.89,147.88,2.97958595]
[1751723846729,23.57939685,147.89,147.88,2.97958595]
[1751723847524,15.2565738,147.89,147.88,2.97958595]
[1751723848327,8.4961738,147.89,147.88,2.97958595]
[1751723848528,5.86422295,147.89,147.88,2.97958595]
[1751723849628,12.62432295,147.89,147.88,2.97958595]
[1751723854933,5.86422295,147.89,147.88,2.97958595]
[1751723855337,11.07641544,147.93,147.88,2.97958595]
[1751723855537,12.63044237,147.92,147.91,2.97958595]
[1751723857832,15.26594171,147.92,147.91,2.97958595]
[1751723858031,20.14632479,147.92,147.9,2.97958595]
[1751723858231,13.38722479,147.91,147.9,2.97958595]
[1751723858937,13.38910283,147.91,147.9,2.97958595]
[1751723861336,7.51776046,147.91,147.9,2.97958595]
[1751723861737,14.27696046,147.91,147.9,2.97958595]
[1751723862639,6.7602,147.89,147.85,45.8]
[1751723862837,6.7602,147.89,147.88,2.97958595]
[1751723863040,2.97958595,147.9,147.86,2.97958595]
[1751723863339,4.7608,147.93,147.85,48.77958595]
[1751723863340,6.7615,147.86,147.85,48.77958595]
[1751723863843,11.66159972,147.86,147.85,48.77958595]
[1751723866240,4.90009972,147.86,147.85,48.77958595]
[1751723869243,4.90009972,147.86,147.85,55.54158595]
[1751723869450,54.36998338,147.92,147.85,48.77958595]
[1751723869451,4.66620283,147.91,147.85,48.77958595]
[1751723869648,13.14138274,147.9,147.89,2.97958595]
[1751723869838,19.90108274,147.9,147.89,2.97958595]
[1751723871144,7.27460292,147.9,147.89,2.97958595]
[1751723871543,2.60840009,147.9,147.89,2.97958595]
[1751723877652,6.7594,147.91,147.89,2.97958595]
[1751723877852,6.7594,147.91,147.9,2.97958595]
[1751723878149,9.36141935,147.91,147.9,2.97958595]
[1751723880067,2.60201935,147.91,147.9,2.97958595]
[1751723880648,6.7589,147.92,147.9,2.97958595]
[1751723880947,6.7589,147.92,147.91,2.97958595]
[1751723881148,15.22923483,147.92,147.91,2.97958595]
[1751723881343,12.61885334,147.92,147.91,2.97958595]
[1751723881550,20.05786993,147.92,147.91,2.97958595]
[1751723894166,13.29896993,147.92,147.89,2.97958595]
[1751723894363,13.29678694,147.91,147.89,2.97958595]
[1751723894559,4.82896372,147.9,147.89,2.97958595]
[1751723895165,11.58886372,147.9,147.89,2.97958595]
[1751723896969,11.58886372,147.9,147.88,2.97958595]
[1751723897172,6.7599,147.9,147.88,2.97958595]
[1751723898465,6.7599,147.9,147.88,9.74008595]
[1751723901173,6.7599,147.9,147.89,2.97958595]
[1751723911277,17.42737047,147.9,147.89,2.97958595]
[1751723911478,12.61887954,147.9,147.89,2.97958595]
[1751723912478,17.42551429,147.9,147.89,2.97958595]
[1751723913981,17.43635791,147.9,147.89,2.97958595]
[1751723915284,20.04505232,147.9,147.89,2.97958595]
[1751723915678,17.43635791,147.9,147.89,2.97958595]
[1751723916983,17.44353954,147.9,147.89,2.97958595]
[1751723917285,10.68363954,147.9,147.89,2.97958595]
[1751723917881,10.68363954,147.9,147.88,6.7605]
[1751723918085,6.7595,147.91,147.89,2.97670516]
[1751723918386,10.69032221,147.9,147.89,2.97670516]
[1751723918586,13.3016238,147.9,147.89,2.97670516]
[1751723925690,13.30001324,147.9,147.89,2.97670516]
[1751723927790,20.05971324,147.9,147.87,6.7608]
[1751723927994,4.82515292,147.89,147.88,2.97670516]
[1751723928198,4.82515292,147.89,147.88,2.97735142]
[1751723928493,10.6912065,147.89,147.88,2.97735142]
[1751723928993,10.6912065,147.89,147.88,9.73795142]
[1751723929796,10.69135262,147.89,147.88,9.73795142]
[1751723931193,6.759,147.92,147.89,6.76]
[1751723931392,6.759,147.92,147.91,2.97735142]
[1751723931593,20.05136143,147.92,147.91,2.97735142]
[1751723934291,6.7592,147.91,147.9,2.97735142]
[1751723934492,20.05156143,147.91,147.9,2.97735142]
[1751723938794,20.064634,147.91,147.9,2.97735142]
[1751723939002,13.305434,147.91,147.9,2.97735142]
[1751723942500,13.30564181,147.91,147.9,2.97735142]
[1751723945502,10.69340089,147.91,147.9,2.97735142]
[1751723945801,13.30592126,147.91,147.9,2.97735142]
[1751723959607,13.30592126,147.91,147.9,9.73705142]
[1751723959809,13.30592126,147.91,147.9,9.73609547]
[1751723960211,13.30592126,147.91,147.9,2.97639547]
[1751723960604,13.30755176,147.91,147.9,2.97639547]
[1751723961508,13.30755176,147.91,147.9,9.73609547]
[1751723966013,13.31786654,147.91,147.9,9.73609547]
[1751723966513,13.31750907,147.91,147.9,9.73609547]
[1751723969712,10.70509704,147.91,147.9,9.73609547]
[1751723969912,13.3250152,147.91,147.9,9.73609547]
[1751723970716,10.70509704,147.91,147.9,9.73609547]
[1751723972515,10.71491795,147.91,147.9,9.73609547]
[1751723978820,10.70440838,147.91,147.9,9.73609547]
[1751723980514,13.32236585,147.91,147.9,9.73609547]
[1751723983120,10.70440838,147.91,147.9,9.73609547]
[1751723990023,13.31163386,147.91,147.9,2.97639547]
[1751723995436,13.31163386,147.91,147.9,9.73609547]
[1751723999340,13.31163386,147.91,147.9,9.73551225]
[1751723999839,10.70440838,147.91,147.9,9.73551225]
[1751724000935,6.7576,147.95,147.92,6.7586]
[1751724001229,8.69097818,147.96,147.92,6.7586]
[1751724001230,7.30418153,147.94,147.92,6.7586]
[1751724001432,10.99197818,147.99,147.87,48.1379]
[1751724001635,2.60853623,147.98,147.88,2.2382]
[1751724001833,6.31857818,148.02,147.88,2.2382]
[1751724002037,6.31857818,148.02,147.89,2.248]
[1751724002038,7.30192951,148.01,147.89,2.248]
[1751724002237,7.30192951,148.0,147.98,2.97581225]
[1751724002447,2.60873274,147.99,147.98,2.97581225]
[1751724003445,6.755,148.01,147.98,2.97581225]
[1751724003646,6.755,148.01,148.0,2.97581225]
[1751724003846,9.35844933,148.01,148.0,2.97581225]
[1751724005545,9.35844933,148.01,147.98,6.7559]
[1751724005741,6.755,148.01,148.0,2.97581225]
[1751724005947,9.36211018,148.01,148.0,2.97581225]
[1751724007447,6.755,148.01,148.0,2.97581225]
[1751724007650,9.3597245,148.01,148.0,2.97581225]
[1751724008450,6.755,148.01,148.0,2.97581225]
[1751724012842,17.3610013,148.01,148.0,2.97581225]
[1751724014049,13.58181355,148.01,147.98,2.97581225]
[1751724014256,2.97581225,148.01,147.97,2.97581225]
[1751724014553,6.7559,147.99,147.97,2.97581225]
[1751724015054,6.7559,147.99,147.98,2.97581225]
[1751724018258,6.7561,147.98,147.97,2.97581225]
[1751724019454,6.7568,147.97,147.94,52.4776]
[1751724019655,6.7568,147.97,147.95,2.97581225]
[1751724019854,6.7563,147.98,147.95,9.73321225]
[1751724021362,6.7565,147.97,147.95,9.73321225]
[1751724023157,6.7565,147.97,147.95,2.97581225]
[1751724026264,6.7565,147.97,147.96,2.97581225]
[1751724035266,6.7562,147.98,147.96,2.97581225]
[1751724035464,6.7562,147.98,147.97,2.97581225]
[1751724035664,12.48751721,147.98,147.97,2.97581225]
[1751724037461,6.7566,147.97,147.96,2.97581225]
[1751724039268,12.49413497,147.97,147.96,2.97581225]
[1751724040863,5.73753497,147.97,147.94,45.72]
[1751724041069,2.97581225,147.99,147.96,2.97581225]
[1751724041263,5.74711931,147.98,147.95,2.97581225]
[1751724041463,5.74711931,147.97,147.95,2.97581225]
[1751724041665,6.7572,147.96,147.95,2.97581225]
[1751724043172,12.50855394,147.96,147.95,2.97581225]
[1751724044268,17.33560112,147.96,147.95,2.97581225]
[1751724047974,10.57840112,147.96,147.95,2.97581225]
[1751724049772,17.33530112,147.96,147.95,2.97581225]
[1751724053878,6.7574,147.95,147.94,45.72]
[1751724054080,17.33580112,147.95,147.94,48.69581225]
[1751724059184,10.57840112,147.95,147.94,48.69581225]
[1751724060780,48.67581225,148.01,147.94,55.45361225]
[1751724060986,17.92588946,148.0,147.97,2.97581225]
[1751724061184,17.92588946,147.99,147.97,2.97581225]
[1751724061388,13.16365849,147.98,147.97,2.97581225]
[1751724061885,19.92015849,147.98,147.97,2.97581225]
[1751724064579,6.7565,147.97,147.96,2.97581225]
[1751724064779,19.93573692,147.97,147.96,2.97581225]
[1751724066686,13.17923692,147.97,147.96,9.73271225]
[1751724066992,10.57079447,147.97,147.96,9.73271225]
[1751724067287,6.7549,148.01,147.98,6.7557]
[1751724067590,6.7549,148.01,148.0,2.97581225]
[1751724067791,14.18653293,148.01,148.0,2.97581225]
[1751724068388,7.43163293,148.01,148.0,2.97581225]
[1751724069292,4.82308725,148.01,148.0,2.97581225]
[1751724069493,14.18655766,148.01,148.0,2.97581225]
[1751724070692,14.22046777,148.01,148.0,2.97581225]
[1751724070888,11.61234402,148.01,148.0,2.97581225]
[1751724075495,6.7552,148.0,147.99,2.97581225]
[1751724076201,11.62773527,148.0,147.99,2.97581225]
[1751724077202,11.62773527,148.0,147.98,2.97581225]
[1751724077395,6.7552,148.0,147.98,2.97581225]
[1751724081893,6.7548,148.01,147.98,9.73181225]
[1751724082100,10.62283134,148.0,147.98,9.73181225]
[1751724082302,6.7548,148.01,147.98,9.73181225]
[1751724082598,10.62260048,148.0,147.99,2.97581225]
[1751724084606,10.61235465,148.0,147.99,2.97581225]
[1751724084808,5.74089767,148.0,147.99,2.97581225]
[1751724085107,10.61235465,148.0,147.99,2.97581225]
[1751724089005,17.36745465,148.0,147.99,2.97581225]
[1751724096616,6.7559,147.99,147.96,6.7567]
[1751724096815,6.7559,147.99,147.98,2.97581225]
[1751724097014,12.45585515,147.99,147.98,2.97581225]
[1751724099217,5.69995515,147.99,147.98,2.97581225]
[1751724100906,12.45555515,147.99,147.98,2.97581225]
[1751724101307,17.33486583,147.99,147.98,2.97581225]
[1751724101610,10.57926583,147.99,147.98,2.97581225]
[1751724101816,10.57926689,147.99,147.98,2.97581225]
[1751724103319,17.33486689,147.99,147.98,2.97581225]
[1751724106520,17.32975872,147.99,147.98,2.97581225]
[1751724107019,12.45555515,147.99,147.98,2.97581225]
[1751724107219,17.33057619,147.99,147.98,2.97581225]
[1751724107721,10.57497619,147.99,147.98,2.97581225]
[1751724114220,10.57497619,147.99,147.98,9.73181225]
[1751724114723,10.57497619,147.99,147.98,2.97581225]
[1751724115925,10.57497619,147.99,147.98,9.72862364]
[1751724117822,6.7544,148.02,147.99,6.7553]
[1751724118018,8.27332408,148.01,147.99,6.7553]
[1751724118214,6.7544,148.02,147.99,6.7553]
[1751724118420,2.61675964,148.01,147.99,6.7553]
[1751724118621,6.7544,148.02,147.99,6.7553]
[1751724118822,2.61675964,148.01,147.99,6.7553]
[1751724119021,6.7544,148.02,147.99,6.7553]
[1751724119223,2.61675964,148.01,147.99,6.7553]
[1751724119427,6.7544,148.02,148.0,2.97197506]
[1751724119626,6.7544,148.02,148.01,2.97197506]
[1751724119927,9.37096121,148.02,148.01,2.97197506]
[1751724129242,6.756,147.98,147.97,45.66]
[1751724129440,48.63197506,148.05,147.97,48.63197506]
[1751724129633,7.43879397,148.04,148.0,2.97197506]
[1751724129835,6.7542,148.02,148.01,2.97197506]
[1751724130035,24.61665421,148.02,148.01,2.97197506]
[1751724131841,6.7558,147.99,147.96,6.7567]
[1751724132041,6.7558,147.99,147.98,2.97197506]
[1751724132241,12.35402161,147.99,147.98,2.97197506]
[1751724133538,6.7558,147.99,147.98,2.97197506]
[1751724134839,11.58058426,147.99,147.98,2.97197506]
[1751724136038,17.17989381,147.99,147.98,2.97197506]
[1751724141944,12.35510955,147.99,147.98,2.97197506]
[1751724142145,17.18078271,147.99,147.98,2.97197506]
[1751724146249,10.42498271,147.99,147.98,2.97197506]
[1751724146646,17.18058271,147.99,147.98,2.97197506]
[1751724147948,17.18134482,147.99,147.98,2.97197506]
[1751724151353,10.42574482,147.99,147.98,2.97197506]
[1751724152352,4.82643527,147.99,147.98,2.97197506]
[1751724155757,11.58203527,147.99,147.98,2.97197506]
[1751724160066,4.82643527,147.99,147.98,2.97197506]
[1751724161655,11.58203527,147.99,147.98,2.97197506]
[1751724162065,10.40560579,147.99,147.98,2.9731602]
[1751724162362,10.40560579,147.99,147.98,2.97315649]
[1751724162660,15.99427871,147.99,147.92,45.66]
[1751724162854,17.84581685,147.98,147.94,2.97528637]
[1751724163061,17.84559805,147.97,147.94,2.97528637]
[1751724163256,13.01940375,147.96,147.94,2.97528637]
[1751724163556,17.16300579,147.95,147.94,2.97528637]
[1751724163857,17.16300579,147.95,147.93,2.97528637]
[1751724163858,13.01653389,147.95,147.93,2.97528637]
[1751724164059,10.40560579,147.94,147.93,2.97528637]
[1751724164656,17.16340579,147.94,147.93,2.97528637]
[1751724165064,12.34088744,147.94,147.93,2.97528637]
[1751724165265,6.7578,147.94,147.93,2.97528637]
[1751724169867,6.7577,147.95,147.93,2.97528637]
[1751724170065,6.7577,147.95,147.94,2.97528637]
[1751724171961,4.7343,147.98,147.94,2.97528637]
[1751724172274,48.63528637,148.01,147.97,2.97528637]
[1751724172463,12.82120192,148.0,147.97,2.97528637]
[1751724172669,6.756,147.98,147.97,2.97528637]
[1751724172968,16.98521301,147.98,147.97,2.97528637]
[1751724173959,4.73065492,147.98,147.97,2.97528637]
[1751724174164,6.7927,148.02,147.97,2.97528637]
[1751724174360,4.5405,148.02,148.01,2.97528637]
[1751724174564,12.63616275,148.02,148.01,2.97528637]
[1751724174766,10.04037524,148.02,148.01,2.97528637]
[1751724175570,16.79457524,148.02,148.01,2.97528637]
[1751724177070,11.2947,148.02,148.01,2.97528637]
[1751724177466,6.7547,148.01,147.98,6.7557]
[1751724177666,6.7547,148.01,148.0,2.97528637]
[1751724190275,6.7538,148.03,148.0,9.73038637]
[1751724190475,6.7538,148.03,147.96,45.64]
[1751724190476,45.66,148.05,148.02,2.97528637]
[1751724190681,7.36099779,148.04,147.96,45.64]
[1751724190872,4.75364379,148.03,148.01,6.7543]
[1751724191073,6.7536,148.04,148.01,6.7543]
[1751724191786,6.7538,148.03,148.0,6.7549]
[1751724192081,6.7538,148.03,148.02,2.97528637]
[1751724196890,6.8663,148.06,148.02,2.97528637]
[1751724196891,6.7535,148.04,148.02,2.97528637]
[1751724197088,6.7535,148.04,148.03,2.97528637]
[1751724201192,6.753,148.05,148.03,2.97528637]
[1751724201488,6.753,148.05,148.04,2.97528637]
[1751724208991,6.7525,148.06,148.04,2.97528637]
[1751724209197,6.7525,148.06,148.05,2.97528637]
[1751724215205,2.97528637,148.06,148.02,2.97528637]
[1751724215707,4.47519,148.07,148.02,2.97528637]
[1751724216105,7.45047637,148.07,148.03,2.97528637]
[1751724216301,5.54410238,148.06,148.03,2.97528637]
[1751724216503,6.7538,148.03,148.02,2.97528637]
[1751724222429,4.47519,148.07,148.01,45.64]
[1751724222613,4.47519,148.07,147.94,628.98]
[1751724222614,2.97528637,148.02,147.94,628.98]
[1751724222810,2.97528637,148.0,147.96,2.97528637]
[1751724223009,6.7562,147.98,147.96,2.97528637]
[1751724223211,2.97528637,148.0,147.96,2.97528637]
[1751724223411,2.97528637,147.99,147.95,2.97528637]
[1751724226116,6.7561,147.98,147.96,6.7568]
[1751724228717,6.7561,147.98,147.95,6.7572]
[1751724231611,6.7561,147.98,147.96,6.7568]
[1751724231817,6.7561,147.98,147.96,11.40453004]
[1751724237130,6.7558,147.99,147.96,11.40453004]
[1751724237331,45.64,148.03,147.97,6.7564]
[1751724237532,12.98332377,148.02,147.97,6.7564]
[1751724237729,6.7554,148.0,147.97,6.7564]
[1751724240336,6.7556,147.99,147.97,6.7564]
[1751724243738,2.97405017,148.0,147.95,6.7571]
[1751724244035,2.97405017,148.0,147.95,9.73115017]
[1751724245336,6.7564,147.98,147.95,9.73115017]
[1751724245531,2.97405017,147.98,147.94,48.61405017]
[1751724246542,6.7572,147.96,147.94,48.61405017]
[1751724247041,6.7566,147.97,147.94,55.37165017]
[1751724247245,6.7566,147.97,147.96,2.97405017]
[1751724247843,6.7563,147.98,147.95,11.40421954]
[1751724255838,6.7565,147.97,147.95,4.64701954]
[1751724266143,6.7569,147.96,147.94,52.3976]
[1751724267747,6.7569,147.96,147.94,55.37235799]
[1751724270249,6.7569,147.96,147.95,2.97475799]
[1751724272451,6.7567,147.97,147.95,2.97475799]
[1751724275352,6.7567,147.97,147.96,2.97475799]
[1751724275544,12.3814933,147.97,147.96,2.97475799]
[1751724283153,17.06233012,147.97,147.96,2.97475799]
[1751724283356,17.06233012,147.97,147.95,2.97432904]
[1751724283555,6.7567,147.97,147.95,2.97432904]
[1751724285855,9.87752904,148.01,147.96,2.97432904]
[1751724286055,12.92133229,148.0,147.97,2.97432904]
[1751724286258,19.67713229,147.99,147.98,2.97347986]
[1751724287461,19.67827537,147.99,147.98,2.97347986]
[1751724291161,17.0663522,147.99,147.98,2.97347986]
[1751724291362,19.67939163,147.99,147.98,2.97347986]
[1751724291661,12.92359163,147.99,147.98,2.97347986]
[1751724291962,12.92359163,147.99,147.97,6.7564]
[1751724292162,5.62815846,147.98,147.97,6.7564]
[1751724292364,5.62815846,147.98,147.97,9.72987986]
[1751724305173,6.7553,148.0,147.97,9.72987986]
[1751724305371,5.64671175,147.99,147.98,2.97347986]
[1751724306473,5.64692562,147.99,147.98,2.97347986]
[1751724307471,5.64692562,147.99,147.98,9.72947986]
[1751724309775,6.7548,148.01,147.98,9.72947986]
[1751724310070,7.3310336,148.0,147.99,6.7556]
[1751724310274,4.7162701,148.0,147.99,6.7556]
[1751724310475,6.7543,148.02,147.99,6.7556]
[1751724310872,4.71652141,148.01,147.99,6.7556]
[1751724311073,6.7543,148.02,147.99,6.7556]
[1751724311274,6.7543,148.02,148.01,2.97347986]
[1751724311468,19.72973469,148.02,148.01,2.97347986]
[1751724314477,14.08481637,148.02,148.01,2.97347986]
[1751724314676,19.73807128,148.02,148.01,2.97347986]
[1751724315479,14.08481637,148.02,148.01,2.97347986]
[1751724318982,19.73555429,148.02,148.0,2.97347986]
[1751724319183,6.7543,148.02,148.0,2.97347986]
[1751724320486,6.7546,148.01,148.0,2.97347986]
[1751724327397,11.47188137,148.01,148.0,2.97347986]
[1751724328895,6.7546,148.01,148.0,2.97347986]
[1751724329992,10.78172569,148.07,148.0,2.97347986]
[1751724330188,17.76224466,148.06,148.03,2.97347986]